fUST/lending_fUST_20241231
["ID","MTS","AMOUNT","RATE_DAILY","PERIOD"]
[347223450,1735591855351,-645.17,0.00012595,2]
[347223451,1735591855363,-500.0,0.00012595,2]
[347223452,1735591855375,-500.0,0.00012597,2]
[347223453,1735591855389,-500.0,0.00012597,2]
[347223454,1735591855401,-500.0,0.00012598,2]
[347223455,1735591855412,-500.0,0.00012869,2]
[347223456,1735591855424,-1949.36,0.00012869,2]
[347223457,1735591855436,-500.0,0.00012869,2]
[347223458,1735591855448,-310.04,0.00012869,2]
[347223459,1735591855460,-500.0,0.00012869,2]
[347223460,1735591855472,-500.0,0.00012871,2]
[347223461,1735591855484,-500.0,0.00012872,2]
[347223462,1735591855496,-580.38,0.00012875,2]
[347223463,1735591855508,-500.0,0.00013143,2]
[347223464,1735591855520,-1949.36,0.00013143,2]
[347223465,1735591855532,-500.0,0.00013143,2]
[347223466,1735591855544,-500.0,0.00013143,2]
[347223467,1735591855555,-500.0,0.00013145,2]
[347223468,1735591855567,-500.0,0.00013146,2]
[347223469,1735591855579,-580.38,0.00013149,2]
[347223470,1735591855590,-500.0,0.00013417,2]
[347223471,1735591855602,-1949.36,0.00013417,2]
[347223472,1735591855613,-500.0,0.00013417,2]
[347223473,1735591855625,-500.0,0.00013417,2]
[347223474,1735591855639,-500.0,0.00013419,2]
[347223475,1735591855652,-500.0,0.0001342,2]
[347223476,1735591855663,-580.38,0.00013423,2]
[347223477,1735591855676,-500.0,0.00013691,2]
[347223478,1735591855688,-1949.36,0.00013691,2]
[347223479,1735591855701,-382.07466108,0.00013691,2]
[347223480,1735591855713,-500.0,0.00013691,2]
[347223481,1735591855725,-500.0,0.00013693,2]
[347223482,1735591855737,-500.0,0.00013694,2]
[347223483,1735591855748,-580.38,0.00013697,2]
[347223484,1735591855760,-500.0,0.00013698,2]
[347223485,1735591855773,-1000.0,0.00013698,2]
[347223486,1735591855784,-1000.0,0.00013698,2]
[347223487,1735591855795,-500.0,0.00013698,2]
[347223488,1735591855807,-500.0,0.00013698,2]
[347223489,1735591855819,-500.0,0.00013698,2]
[347223490,1735591855831,-500.0,0.00013698,2]
[347223491,1735591855842,-174.7992965,0.00013699,2]
[347223492,1735591855947,-156.73234375,0.000137,2]
[347223493,1735591855956,-500.0,0.00013965,2]
[347223494,1735591855965,-1949.36,0.00013965,2]
[347223495,1735591855975,-258.57013673,0.00013965,2]
[347223496,1735591855984,-500.0,0.00013967,2]
[347223497,1735591855992,-500.0,0.00013968,2]
[347223498,1735591856002,-580.38,0.00013971,2]
[347223499,1735591856010,-341.763045,0.00013973,2]
[347223500,1735591856019,-500.0,0.00014239,2]
[347223501,1735591856028,-1949.36,0.00014239,2]
[347223502,1735591856037,-500.0,0.00014241,2]
[347223503,1735591856046,-500.0,0.00014242,2]
[347223504,1735591856059,-580.38,0.00014245,2]
[347223505,1735591856068,-500.0,0.00014513,2]
[347223506,1735591856077,-1949.36,0.00014513,2]
[347223507,1735591856087,-500.0,0.00014515,2]
[347223508,1735591856096,-500.0,0.00014516,2]
[347223509,1735591856106,-580.38,0.00014519,2]
[347223510,1735591856116,-500.0,0.00014787,2]
[347223511,1735591856126,-1949.36,0.00014787,2]
[347223512,1735591856136,-434.8,0.00014789,2]
[347223513,1735591856145,-500.0,0.0001479,2]
[347223514,1735591856155,-580.38,0.00014793,2]
[347223515,1735591856164,-500.0,0.00015061,2]
[347223516,1735591856173,-1949.36,0.00015061,2]
[347223517,1735591856183,-500.0,0.00015064,2]
[347223518,1735591856191,-580.38,0.00015067,2]
[347223519,1735591856201,-500.0,0.00015335,2]
[347223520,1735591856210,-1949.36,0.00015335,2]
[347223521,1735591856219,-500.0,0.00015338,2]
[347223522,1735591856229,-580.38,0.00015341,2]
[347223523,1735591856238,-599.12,0.00015609,2]
[347223524,1735591856247,-1949.36,0.00015609,2]
[347223525,1735591856256,-500.0,0.00015612,2]
[347223526,1735591856265,-580.38,0.00015615,2]
[347223527,1735591856275,-170.45566232,0.00015763,2]
[347223528,1735591856284,-1949.36,0.00015883,2]
[347223529,1735591856293,-500.0,0.00015886,2]
[347223530,1735591856302,-580.38,0.00015889,2]
[347223531,1735591856311,-158.77890975,0.0001602,2]
[347223532,1735591856320,-1949.36,0.00016157,2]
[347223533,1735591856329,-580.38,0.00016163,2]
[347223534,1735591856338,-1949.36,0.00016431,2]
[347223535,1735591856347,-580.38,0.00016437,2]
[347223536,1735591856356,-189.42121727,0.00016437,2]
[347223537,1735591856365,-500.0,0.00016437,2]
[347223538,1735591856374,-637.00996388,0.00016437,2]
[347223539,1735591856383,-500.0,0.00016438,2]
[347223540,1735591856392,-500.0,0.00016438,2]
[347223541,1735591856401,-500.0,0.00016438,2]
[347223542,1735591856410,-500.0,0.00016438,2]
[347223543,1735591856419,-500.0,0.00016438,2]
[347223544,1735591856429,-500.0,0.00016438,2]
[347223545,1735591856438,-500.0,0.00016438,2]
[347223546,1735591856447,-500.0,0.00016438,2]
[347223547,1735591856456,-500.0,0.00016438,2]
[347223548,1735591856466,-500.0,0.00016438,2]
[347223549,1735591856475,-500.0,0.00016438,2]
[347223550,1735591856483,-500.0,0.00016438,2]
[347223551,1735591856493,-500.0,0.00016438,2]
[347223552,1735591856502,-500.0,0.00016438,2]
[347223553,1735591856511,-500.0,0.00016438,2]
[347223554,1735591856520,-500.0,0.00016438,2]
[347223555,1735591856529,-500.0,0.00016438,2]
[347223556,1735591856539,-500.0,0.00016438,2]
[347223557,1735591856548,-500.0,0.00016438,2]
[347223558,1735591856557,-500.0,0.00016438,2]
[347223559,1735591856566,-617.18024999,0.00016438,2]
[347223560,1735591856575,-500.0,0.00016438,2]
[347223561,1735591856584,-500.0,0.00016438,2]
[347223562,1735591856593,-500.0,0.00016438,2]
[347223563,1735591856602,-500.0,0.00016438,2]
[347223564,1735591856611,-200.0,0.00016438,2]
[347223565,1735591856621,-204.43481183,0.00016438,2]
[347223566,1735591856630,-428.26967868,0.000165,2]
[347223567,1735591856639,-17697.98,0.000165,2]
[347223568,1735591856648,-6213.39,0.000165,2]
[347223569,1735591856657,-17841.81,0.000165,2]
[347223570,1735591856666,-1949.36,0.00016705,2]
[347223571,1735591856676,-580.38,0.00016711,2]
[347223572,1735591856684,-1949.36,0.00016979,2]
[347223573,1735591856693,-580.38,0.00016985,2]
[347223574,1735591856703,-500.0,0.00017123,4]
[347223575,1735591856712,-212.231,0.00017225,2]
[347223576,1735591856721,-1949.36,0.00017253,2]
[347223577,1735591856730,-580.38,0.00017259,2]
[347223578,1735591856739,-1949.41999999,0.00017527,2]
[347223579,1735591856748,-580.38,0.00017533,2]
[347223580,1735591856757,-580.38,0.00017807,2]
[347223581,1735591856767,-500.0,0.00017808,6]
[347223582,1735591856776,-580.38,0.00018081,2]
[347223583,1735591856786,-150.0,0.00018099,2]
[347223584,1735591856795,-534.0,0.00018099,2]
[347223585,1735591856804,-1702.799,0.00018099,2]
[347223586,1735591856813,-580.38,0.00018355,2]
[347223587,1735591856822,-249.86,0.00018493,8]
[347223588,1735591856831,-580.38,0.00018629,2]
[347223589,1735591856840,-501.57246416,0.000187,2]
[347223590,1735591856849,-580.38,0.00018903,2]
[347223591,1735591856858,-302.72757545,0.00019007,2]
[347223592,1735591856868,-580.38,0.00019176,2]
[347223593,1735591856877,-500.0,0.00019178,2]
[347223594,1735591856886,-500.0,0.00019178,2]
[347223595,1735591856895,-500.0,0.00019178,2]
[347223596,1735591856905,-500.0,0.00019178,2]
[347223597,1735591856914,-451.02,0.00019178,2]
[347223598,1735591856923,-175.786158,0.00019178,2]
[347223599,1735591856932,-192.3899833,0.00019178,2]
[347223600,1735591856941,-302.72757545,0.00019197,2]
[347223601,1735591856951,-302.72757545,0.00019387,2]
[347223602,1735591856960,-690.729,0.0001947,2]
[347223603,1735591856969,-302.72757545,0.00019577,2]
[347223604,1735591856978,-302.72757545,0.00019767,2]
[347223605,1735591856987,-17697.98,0.000198,2]
[347223606,1735591856997,-6213.39,0.000198,2]
[347223607,1735591857006,-17841.81,0.000198,2]
[347223608,1735591857016,-454.09136318,0.00019957,4]
[347223609,1735591857025,-500.0,0.0001998,2]
[347223610,1735591857034,-845.81,0.00019999,2]
[347223611,1735591857044,-845.81,0.00019999,2]
[347223612,1735591857055,-306.784418,0.0002,2]
[347223613,1735591857064,-306.784418,0.0002,2]
[347223614,1735591857074,-884.34607,0.0002,2]
[347223615,1735591857083,-884.34607,0.0002,2]
[347223616,1735591857094,-884.34607,0.0002,2]
[347223617,1735591857103,-884.34607,0.0002,2]
[347223618,1735591857112,-4623.37254364,0.0002,3]
[347223619,1735591857123,-151.0,0.0002,2]
[347223620,1735591857132,-152.967861,0.0002,2]
[347223621,1735591857141,-1084.43,0.0002,2]
[347223622,1735591857151,-2298.018026,0.0002,2]
[347223623,1735591857160,-2298.018026,0.0002,2]
[347223624,1735591857169,-2298.018026,0.0002,2]
[347223625,1735591857178,-2298.018026,0.0002,2]
[347223626,1735591857188,-151.0,0.0002,2]
[347223627,1735591857198,-151.0,0.0002,2]
[347223628,1735591857222,-2167.67073224,0.0002,3]
[347223629,1735591857231,-604.63887768,0.00020147,4]
[347223630,1735591857240,-499.0,0.00020273,2]
[347223631,1735591857249,-845.81,0.00020399,2]
[347223632,1735591857259,-845.81,0.00020399,2]
[347223633,1735591857268,-306.784418,0.000204,2]
[347223634,1735591857277,-306.784418,0.000204,2]
[347223635,1735591857286,-884.34607,0.000204,2]
[347223636,1735591857295,-884.34607,0.000204,2]
[347223637,1735591857305,-2298.018026,0.000204,2]
[347223638,1735591857314,-2298.018026,0.000204,2]
[347223639,1735591857323,-151.0,0.000204,2]
[347223640,1735591857332,-1282.88732865,0.000204,2]
[347223641,1735591857343,-170.45566232,0.000204,2]
[347223642,1735591857357,-341.763045,0.00020447,2]
[347223643,1735591857367,-1282.88732863,0.00020457,2]
[347223644,1735591857376,-845.81,0.00020499,2]
[347223645,1735591857385,-845.81,0.00020499,2]
[347223646,1735591857395,-845.81,0.00020499,2]
[347223647,1735591857404,-845.81,0.00020499,2]
[347223648,1735591857413,-845.81,0.00020499,2]
[347223649,1735591857423,-845.81,0.00020499,2]
[347223650,1735591857432,-845.81,0.00020499,2]
[347223651,1735591857441,-845.81,0.00020499,2]
[347223652,1735591857450,-845.81,0.00020499,2]
[347223653,1735591857459,-845.81,0.00020499,2]
[347223654,1735591857468,-845.81,0.00020499,2]
[347223655,1735591857477,-845.81,0.00020499,2]
[347223656,1735591857487,-845.81,0.00020499,2]
[347223657,1735591857496,-845.81,0.00020499,2]
[347223658,1735591857505,-845.81,0.00020499,2]
[347223659,1735591857515,-845.81,0.00020499,2]
[347223660,1735591857524,-845.81,0.00020499,2]
[347223661,1735591857533,-846.03905313,0.00020499,2]
[347223662,1735591857610,-500.0,0.00020499,2]
[347223663,1735591857620,-139668.87685846,0.000205,7]
[347223717,1735593032082,-500.0,0.00011223,2]
[347223718,1735593032092,-500.0,0.00011223,2]
[347223719,1735593032101,-500.0,0.00011223,2]
[347223720,1735593032110,-500.0,0.00011223,2]
[347223721,1735593032119,-500.0,0.00011223,2]
[347223722,1735593032128,-500.0,0.00011223,2]
[347223723,1735593032138,-500.0,0.00011223,2]
[347223724,1735593032147,-500.0,0.00011223,2]
[347223725,1735593032156,-500.0,0.00011223,2]
[347223726,1735593032165,-500.0,0.00011223,2]
[347223727,1735593032174,-500.0,0.00011223,2]
[347223728,1735593032184,-305.81916349,0.00011223,2]
[347223729,1735593032195,-194.18083651,0.00011223,2]
[347223730,1735593032205,-500.0,0.00011223,2]
[347223731,1735593032214,-147.24706798,0.00011223,2]
[347223851,1735593037884,-263.11178913,0.00011111,2]
[347223852,1735593037941,-131.0098231,0.00011111,2]
[347223853,1735593037950,-352.75293202,0.00011223,2]
[347223854,1735593037960,-500.0,0.00011223,2]
[347223855,1735593037969,-518.92386582,0.00011223,2]
[347223856,1735593037997,-59.51613418,0.00011223,2]
[347223857,1735593038007,-500.0,0.00011223,2]
[347223858,1735593038016,-211.58197867,0.00011223,2]
[347223869,1735593040041,-288.41802133,0.00011223,2]
[347223871,1735593040051,-500.0,0.00011223,2]
[347223872,1735593040060,-55.52957454,0.00011223,2]
[347223873,1735593040071,-444.47042546,0.00011223,2]
[347223874,1735593040080,-500.0,0.00011223,2]
[347223875,1735593040089,-500.0,0.00011223,2]
[347223876,1735593040099,-500.0,0.00011223,2]
[347223877,1735593040108,-500.0,0.00011223,2]
[347223878,1735593040117,-500.0,0.00011223,2]
[347223879,1735593040127,-500.0,0.00011223,2]
[347223880,1735593040136,-500.0,0.00011223,2]
[347223881,1735593040145,-500.0,0.00011223,2]
[347223882,1735593040154,-500.0,0.00011223,2]
[347223883,1735593040163,-364.11440527,0.00011223,2]
[347223884,1735593040172,-500.0,0.00011223,2]
[347223885,1735593040181,-619.9,0.00011223,2]
[347223886,1735593040191,-265.72210654,0.00011223,2]
[347223887,1735593040200,-326.07393272,0.00011223,2]
[347223888,1735593040212,-173.92606728,0.00011223,2]
[347223889,1735593040221,-235.87,0.00011223,2]
[347223890,1735593040230,-500.0,0.00011223,2]
[347223891,1735593040240,-500.0,0.00011223,2]
[347223892,1735593040249,-500.0,0.00011223,2]
[347223893,1735593040257,-500.0,0.00011223,2]
[347223894,1735593040267,-316.18284279,0.00011223,2]
[347223895,1735593040276,-503.04840298,0.00011223,2]
[347223896,1735593040285,-500.0,0.00011223,2]
[347223897,1735593040294,-500.0,0.00011223,2]
[347223898,1735593040303,-500.0,0.00011223,2]
[347223899,1735593040312,-500.0,0.00011223,2]
[347223900,1735593040322,-500.0,0.00011223,2]
[347223901,1735593040331,-500.0,0.00011223,2]
[347223902,1735593040340,-500.0,0.00011223,2]
[347223903,1735593040349,-500.0,0.00011223,2]
[347223904,1735593040358,-500.0,0.00011223,2]
[347223905,1735593040367,-500.0,0.00011223,2]
[347223906,1735593040376,-275.68156707,0.00011223,2]
[347223907,1735593040388,-224.31843293,0.00011223,2]
[347223908,1735593040397,-500.0,0.00011223,2]
[347223909,1735593040407,-279.48106664,0.00011223,2]
[347223910,1735593040415,-500.0,0.00011223,2]
[347223911,1735593040430,-500.0,0.00011223,2]
[347223912,1735593040439,-500.0,0.00011223,2]
[347223913,1735593040448,-500.0,0.00011223,2]
[347223914,1735593040458,-500.0,0.00011223,2]
[347223915,1735593040468,-500.0,0.00011223,2]
[347223916,1735593040477,-403.03,0.00011223,2]
[347223917,1735593040487,-500.0,0.00011223,2]
[347223918,1735593040497,-268.5459673,0.00011223,2]
[347223931,1735593043073,-231.4540327,0.00011223,2]
[347223932,1735593043175,-500.0,0.00011223,2]
[347223933,1735593043184,-500.0,0.00011223,2]
[347223934,1735593043194,-162.32,0.00011223,2]
[347223935,1735593043203,-500.0,0.00011223,2]
[347223936,1735593043212,-500.0,0.00011223,2]
[347223937,1735593043221,-500.0,0.00011223,2]
[347223938,1735593043229,-500.0,0.00011223,2]
[347223940,1735593043239,-567.38,0.00011223,2]
[347223941,1735593043249,-500.0,0.00011223,2]
[347223943,1735593043258,-500.0,0.00011223,2]
[347223945,1735593043267,-1122.44,0.00011223,2]
[347223946,1735593043276,-500.0,0.00011223,2]
[347223947,1735593043286,-500.0,0.00011223,2]
[347223948,1735593043294,-500.0,0.00011223,2]
[347223949,1735593043303,-509.26,0.00011223,2]
[347223951,1735593043312,-500.0,0.00011223,2]
[347223953,1735593043322,-500.0,0.00011223,2]
[347223954,1735593043331,-201.97,0.00011223,2]
[347223955,1735593043340,-500.0,0.00011223,2]
[347223956,1735593043350,-500.0,0.00011223,2]
[347223957,1735593043359,-183.71628496,0.00011223,2]
[347223958,1735593043368,-242.18,0.00011223,2]
[347223959,1735593043377,-500.0,0.00011223,2]
[347223960,1735593043387,-500.0,0.00011223,2]
[347223962,1735593043396,-500.0,0.00011223,2]
[347223963,1735593043405,-500.0,0.00011223,2]
[347223965,1735593043414,-500.0,0.00011223,2]
[347223967,1735593043426,-500.0,0.00011223,2]
[347223968,1735593043435,-500.0,0.00011223,2]
[347223969,1735593043444,-500.0,0.00011223,2]
[347223970,1735593043453,-575.24,0.00011223,2]
[347223971,1735593043463,-500.0,0.00011223,2]
[347223973,1735593043472,-500.0,0.00011223,2]
[347223975,1735593043481,-500.0,0.00011223,2]
[347223976,1735593043490,-340.27349244,0.00011223,2]
[347223977,1735593043500,-576.70977446,0.00011223,2]
[347223978,1735593043509,-520.016539,0.00011223,2]
[347223979,1735593043518,-500.0,0.00011223,2]
[347223980,1735593043528,-500.0,0.00011224,2]
[347223981,1735593043538,-500.0,0.00011224,2]
[347223982,1735593043547,-500.0,0.00011224,2]
[347223983,1735593043556,-580.51,0.00011224,2]
[347223984,1735593043564,-500.0,0.00011224,2]
[347223985,1735593043574,-500.0,0.00011224,2]
[347223986,1735593043583,-500.0,0.00011224,2]
[347223987,1735593043592,-500.0,0.00011224,2]
[347223988,1735593043602,-500.0,0.00011224,2]
[347223989,1735593043611,-500.0,0.00011224,2]
[347223990,1735593043620,-500.0,0.00011224,2]
[347223991,1735593043629,-500.0,0.00011224,2]
[347223992,1735593043638,-500.0,0.00011224,2]
[347223993,1735593043648,-500.0,0.00011224,2]
[347223994,1735593043657,-500.0,0.00011224,2]
[347223995,1735593043666,-500.0,0.00011224,2]
[347223996,1735593043675,-500.0,0.00011224,2]
[347223997,1735593043685,-500.0,0.00011224,2]
[347223998,1735593043695,-500.0,0.00011224,2]
[347223999,1735593043704,-500.0,0.00011224,2]
[347224000,1735593043713,-500.0,0.00011224,2]
[347224001,1735593043723,-500.0,0.00011224,2]
[347224002,1735593043732,-500.0,0.00011224,2]
[347224003,1735593043741,-452.36086737,0.00011224,2]
[347224004,1735593043750,-500.0,0.00011224,2]
[347224005,1735593043759,-353.36983598,0.00011224,2]
[347224006,1735593043770,-500.0,0.00011224,2]
[347224007,1735593043778,-500.0,0.00011224,2]
[347224008,1735593043790,-500.0,0.00011224,2]
[347224009,1735593043799,-500.0,0.00011224,2]
[347224010,1735593043809,-500.0,0.00011224,2]
[347224011,1735593043818,-500.0,0.00011224,2]
[347224012,1735593043827,-500.0,0.00011224,2]
[347224013,1735593043836,-500.0,0.00011224,2]
[347224014,1735593043846,-500.0,0.00011224,2]
[347224015,1735593043856,-500.0,0.00011224,2]
[347224016,1735593043867,-500.0,0.00011224,2]
[347224017,1735593043877,-500.0,0.00011224,2]
[347224018,1735593043886,-500.0,0.00011224,2]
[347224019,1735593043896,-500.0,0.00011224,2]
[347224020,1735593043906,-188.8464176,0.00011224,2]
[347224021,1735593043917,-297.25,0.00011224,2]
[347224022,1735593043928,-500.0,0.00011224,2]
[347224023,1735593043940,-500.0,0.00011225,2]
[347224024,1735593043951,-500.0,0.00011225,2]
[347224025,1735593043962,-504.47675516,0.00011225,2]
[347224026,1735593043972,-500.0,0.00011225,2]
[347224027,1735593043981,-500.0,0.00011225,2]
[347224028,1735593043991,-500.0,0.00011225,2]
[347224029,1735593044001,-500.0,0.00011225,2]
[347224030,1735593044010,-500.0,0.00011225,2]
[347224031,1735593044020,-500.0,0.00011225,2]
[347224032,1735593044029,-500.0,0.00011225,2]
[347224033,1735593044043,-500.0,0.00011225,2]
[347224034,1735593044053,-500.0,0.00011225,2]
[347224035,1735593044065,-500.0,0.00011225,2]
[347224036,1735593044074,-500.0,0.00011225,2]
[347224037,1735593044083,-437.24,0.00011225,2]
[347224038,1735593044093,-500.0,0.00011225,2]
[347224039,1735593044102,-585.24,0.00011225,2]
[347224040,1735593044111,-500.0,0.00011225,2]
[347224041,1735593044121,-500.0,0.00011225,2]
[347224042,1735593044131,-500.0,0.00011225,2]
[347224043,1735593044140,-500.0,0.00011225,2]
[347224044,1735593044151,-500.0,0.00011227,2]
[347224045,1735593044161,-500.0,0.00011227,2]
[347224046,1735593044170,-298.14,0.00011497,2]
[347224047,1735593044181,-526.12,0.00011497,2]
[347224048,1735593044190,-500.0,0.00011497,2]
[347224049,1735593044200,-500.0,0.00011497,2]
[347224050,1735593044210,-500.0,0.00011497,2]
[347224051,1735593044219,-500.0,0.00011497,2]
[347224052,1735593044228,-618.64,0.00011497,2]
[347224053,1735593044238,-500.0,0.00011497,2]
[347224054,1735593044247,-201.98,0.00011497,2]
[347224055,1735593044257,-1122.44,0.00011497,2]
[347224056,1735593044266,-500.0,0.00011497,2]
[347224057,1735593044275,-487.86211657,0.00011497,2]
[347224058,1735593044284,-500.0,0.00011497,2]
[347224059,1735593044293,-500.0,0.00011497,2]
[347224060,1735593044302,-500.0,0.00011498,2]
[347224061,1735593044311,-529.60783544,0.00011499,2]
[347224062,1735593044320,-500.0,0.00011499,2]
[347224063,1735593044329,-537.5,0.00011499,2]
[347224064,1735593044339,-500.0,0.00011501,2]
[347224065,1735593044348,-500.0,0.00011501,2]
[347224066,1735593044357,-548.42,0.00011771,2]
[347224067,1735593044366,-500.0,0.00011771,2]
[347224068,1735593044375,-453.84,0.00011771,2]
[347224069,1735593044384,-1122.44,0.00011771,2]
[347224070,1735593044394,-500.0,0.00011771,2]
[347224071,1735593044403,-500.0,0.00011771,2]
[347224072,1735593044412,-614.47,0.00011773,2]
[347224073,1735593044423,-500.0,0.00011775,2]
[347224074,1735593044434,-500.0,0.00011775,2]
[347224075,1735593044443,-593.42,0.00012045,2]
[347224076,1735593044452,-1122.44,0.00012045,2]
[347224077,1735593044461,-195.60008817,0.00012045,2]
[347224078,1735593044471,-500.0,0.00012045,2]
[347224079,1735593044480,-500.0,0.00012049,2]
[347224080,1735593044489,-500.0,0.00012049,2]
[347224081,1735593044498,-1122.44,0.00012319,2]
[347224082,1735593044507,-500.0,0.00012319,2]
[347224083,1735593044517,-500.0,0.00012323,2]
[347224084,1735593044526,-500.0,0.00012323,2]
[347224085,1735593044535,-1122.44,0.00012593,2]
[347224086,1735593044551,-453.54,0.00012593,2]
[347224087,1735593044561,-416.7625832,0.00012597,2]
[347224088,1735593044570,-500.0,0.00012597,2]
[347224089,1735593044579,-1122.44,0.00012867,2]
[347224090,1735593044589,-500.0,0.00012871,2]
[347224091,1735593044598,-1122.44,0.00013141,2]
[347224092,1735593044608,-500.0,0.00013145,2]
[347224093,1735593044618,-1122.44,0.00013415,2]
[347224094,1735593044627,-643.22,0.00013419,2]
[347224095,1735593044636,-1122.44,0.00013689,2]
[347224096,1735593044646,-500.0,0.00013698,2]
[347224097,1735593044655,-1122.44,0.00013963,2]
[347224098,1735593044664,-331.32163,0.00013973,2]
[347224099,1735593044674,-1122.44,0.00014237,2]
[347224100,1735593044683,-1122.44,0.00014511,2]
[347224101,1735593044692,-1122.44,0.00014785,2]
[347224102,1735593044702,-1122.44,0.00015059,2]
[347224103,1735593044711,-1122.44,0.00015333,2]
[347224104,1735593044721,-1122.44,0.00015607,2]
[347224105,1735593044730,-1122.44,0.00015881,2]
[347224106,1735593044740,-1122.44,0.00016155,2]
[347224107,1735593044749,-1122.44,0.00016429,2]
[347224108,1735593044759,-500.0,0.00016438,2]
[347224109,1735593044768,-500.0,0.00016438,2]
[347224110,1735593044777,-500.0,0.00016438,2]
[347224111,1735593044788,-500.0,0.00016438,2]
[347224112,1735593044797,-500.0,0.00016438,2]
[347224113,1735593044806,-500.0,0.00016438,2]
[347224114,1735593044816,-500.0,0.00016438,2]
[347224115,1735593044826,-161.74606758,0.00016438,2]
[347224116,1735593044835,-1122.44,0.00016703,2]
[347224117,1735593044844,-1122.44,0.00016977,2]
[347224118,1735593044853,-169.785,0.00017232,2]
[347224119,1735593044862,-1122.44,0.00017251,2]
[347224120,1735593044872,-1122.65,0.00017525,2]
[347224121,1735593044882,-152.76,0.000186,2]
[347224122,1735593044893,-181.0,0.00018957,2]
[347224123,1735593044903,-182.07,0.00018957,2]
[347224124,1735593044913,-500.0,0.00019178,2]
[347224125,1735593044923,-295.99,0.00019178,2]
[347224126,1735593044934,-177.307082,0.00019178,2]
[347224127,1735593044944,-691.019,0.0001947,2]
[347224128,1735593044954,-975.98,0.0002,2]
[347224129,1735593044963,-4161.03518928,0.0002,3]
[347224130,1735593044972,-183.72472395,0.00020254,2]
[347224131,1735593044981,-499.0,0.00020273,2]
[347224132,1735593044991,-162.01557227,0.00020347,2]
[347224133,1735593045000,-454.04600394,0.00020397,4]
[347224134,1735593045009,-14836.93658601,0.000204,3]
[347224135,1735593045018,-331.32163,0.00020447,2]
[347224136,1735593045028,-500.0,0.00020499,2]
[347224137,1735593045038,-519.34056689,0.00020499,2]
[347224138,1735593045049,-160.0,0.00020499,2]
[347224139,1735593045059,-1163.28154493,0.000205,2]
[347224140,1735593045067,-9151.50096744,0.000205,2]
[347224163,1735593046059,-151.081,0.00018417,2]
[347224164,1735593046069,-3793.63395811,0.000205,2]
[347224165,1735593046078,-399789.5684048,0.000205,7]
[347224166,1735593046090,-9360.70927172,0.000205,7]
[347224167,1735593105299,889.0,0.00026047,120]
[347224168,1735593276236,193.51312483,0.00026047,120]
[347224169,1735593295624,1030.0,0.00020989,62]
[347224194,1735593932353,160.0,0.00023245,120]
[347224218,1735594051009,160.0,0.00024705,120]
[347224227,1735594170339,-328.40710024,0.00010047,2]
[347224228,1735594170366,-204.63998893,0.00010148,2]
[347224230,1735594208195,525.18001625,0.00026047,120]
[347224268,1735594232287,-500.0,0.00011223,2]
[347224270,1735594232297,-500.0,0.00011223,2]